bitfinex/quotes_BTCUSD_20241018
["timestamp","ask_amount","ask_price","bid_price","bid_amount"]
[1729209860487,0.99888011,67449.0,67448.0,0.005]
[1729209860925,0.23232383,67427.0,67426.0,0.22396679]
[1729209861155,0.26409761,67427.0,67426.0,0.22396679]
[1729209861377,0.26409761,67427.0,67426.0,0.00893584]
[1729209861378,0.40131411,67427.0,67426.0,0.00893584]
[1729209861603,0.41239576,67427.0,67426.0,0.001654]
[1729209862254,0.26408776,67427.0,67426.0,0.001654]
[1729209862919,0.41239576,67427.0,67426.0,0.011654]
[1729209863147,0.41239576,67427.0,67426.0,0.001654]
[1729209863367,0.41239576,67427.0,67426.0,0.010654]
[1729209863595,0.41238423,67427.0,67426.0,0.010654]
[1729209863830,0.26407623,67427.0,67426.0,0.016654]
[1729209864062,0.26407624,67427.0,67426.0,0.016654]
[1729209864282,0.26407624,67427.0,67426.0,0.010654]
[1729209864516,0.25300611,67427.0,67426.0,0.010654]
[1729209864765,0.25300611,67427.0,67426.0,0.004654]
[1729209864990,0.25300611,67427.0,67426.0,0.009654]
[1729209864991,0.26407194,67427.0,67426.0,0.009654]
[1729209865430,0.25300611,67427.0,67426.0,0.009654]
[1729209868707,0.25300611,67427.0,67426.0,0.01693584]
[1729209868914,0.25300611,67427.0,67426.0,0.009654]
[1729209871207,0.25300611,67427.0,67426.0,0.17024584]
[1729209871208,0.00081583,67427.0,67426.0,0.17024584]
[1729209871415,0.00081583,67427.0,67426.0,0.167964]
[1729209871875,0.00081583,67427.0,67426.0,0.17545092]
[1729209872104,0.00081583,67427.0,67426.0,0.17045092]
[1729209872400,0.00081583,67427.0,67426.0,0.17545092]
[1729209872591,0.00081583,67427.0,67426.0,0.02714092]
[1729209874409,0.00081583,67427.0,67426.0,0.17545092]
[1729209879703,0.01189271,67427.0,67426.0,0.17545092]
[1729209880222,0.01189271,67427.0,67426.0,0.167964]
[1729209880471,0.00081583,67427.0,67426.0,0.167964]
[1729209880703,0.01189271,67427.0,67426.0,0.17544336]
[1729209881151,0.00081583,67427.0,67426.0,0.17544336]
[1729209881383,0.01189271,67427.0,67426.0,0.17544336]
[1729209881856,0.01189271,67427.0,67426.0,0.02713336]
[1729209882091,0.01189271,67427.0,67426.0,0.17544336]
[1729209882315,0.01189271,67427.0,67426.0,0.02713336]
[1729209882549,0.01189271,67427.0,67426.0,0.17544336]
[1729209884430,0.01189271,67427.0,67426.0,0.02713336]
[1729209884666,0.01189271,67427.0,67426.0,0.17544336]
[1729209885412,0.01189271,67427.0,67426.0,0.17044336]
[1729209885640,0.01189271,67427.0,67426.0,0.17544336]
[1729209886750,0.00081583,67427.0,67426.0,0.17544336]
[1729209886966,0.01191581,67427.0,67426.0,0.17544336]
[1729209887193,0.12009476,67427.0,67426.0,0.17544336]
[1729209887411,0.02967579,67427.0,67426.0,0.17544336]
[1729209890636,0.00081583,67427.0,67426.0,0.17544336]
[1729209890865,0.02974114,67427.0,67426.0,0.17544336]
[1729209892508,0.02974114,67427.0,67426.0,0.02713336]
[1729209892726,0.02974114,67427.0,67426.0,0.17544336]
[1729209892969,0.02974114,67427.0,67426.0,0.167964]
[1729209893181,0.02974114,67427.0,67426.0,0.17043598]
[1729209893405,0.02974114,67427.0,67426.0,0.17543598]
[1729209894340,0.02974114,67427.0,67426.0,0.02712598]
[1729209894555,0.52974114,67427.0,67426.0,0.02712598]
[1729209894786,0.52974125,67427.0,67426.0,0.02712598]
[1729209895000,0.6379202,67427.0,67426.0,0.02712598]
[1729209895451,0.6379202,67427.0,67426.0,0.17543598]
[1729209899493,0.6379202,67427.0,67426.0,0.02712598]
[1729209899936,0.6379202,67427.0,67426.0,0.17543598]
[1729209900137,0.6379202,67427.0,67426.0,0.02712598]
[1729209900571,0.6379202,67427.0,67426.0,0.014654]
[1729209900813,0.7862282,67427.0,67426.0,0.009654]
[1729209902786,0.6379202,67427.0,67426.0,0.009654]
[1729209903021,0.67804925,67427.0,67426.0,0.009654]
[1729209903219,0.7862282,67427.0,67426.0,0.01723181]
[1729209904187,0.7862282,67427.0,67426.0,0.009654]
[1729209904424,1.1205663,67427.0,67426.0,0.009654]
[1729209904702,1.1205663,67427.0,67414.0,0.005]
[1729209904703,0.00081583,67411.0,67409.0,0.22231279]
[1729209904877,0.296674,67414.0,67409.0,0.22231279]
[1729209904878,0.39444415,67410.0,67409.0,0.22231279]
[1729209905089,0.39444415,67410.0,67407.0,0.005]
[1729209905090,0.00081583,67408.0,67407.0,0.005]
[1729209905300,0.02974125,67408.0,67407.0,0.005]
[1729209906352,0.01194099,67408.0,67407.0,0.005]
[1729209906587,0.02974125,67408.0,67407.0,0.005]
[1729209906795,0.01194099,67408.0,67407.0,0.005]
[1729209907000,0.02974125,67408.0,67407.0,0.155352]
[1729209907238,0.01194099,67408.0,67407.0,0.155352]
[1729209907864,0.01194099,67408.0,67407.0,0.159352]
[1729209908523,0.01194099,67408.0,67407.0,0.155352]
[1729209908947,0.00181583,67408.0,67407.0,0.161352]
[1729209909156,0.01291536,67408.0,67407.0,0.161352]
[1729209909366,0.01291536,67408.0,67407.0,0.166352]
[1729209909367,0.01291297,67408.0,67407.0,0.166352]
[1729209909795,0.01291297,67408.0,67407.0,0.161352]
[1729209910007,0.01291297,67408.0,67407.0,0.165352]
[1729209910665,0.01191297,67408.0,67407.0,0.157352]
[1729209910881,0.01109714,67408.0,67407.0,0.162352]
[1729209911300,0.379235,67423.0,67409.0,0.158348]
[1729209911301,0.00081583,67410.0,67409.0,0.158348]
[1729209911954,0.00081583,67413.0,67412.0,0.153341]
[1729209912175,0.01190935,67413.0,67412.0,0.153341]
[1729209912418,0.148321,67422.0,67412.0,0.153341]
[1729209912419,0.01109352,67417.0,67412.0,0.18156671]
[1729209912660,0.00081583,67423.0,67422.0,0.153319]
[1729209912875,0.01190695,67423.0,67422.0,0.153319]
[1729209913552,0.01190695,67423.0,67422.0,0.005]
[1729209913797,0.01190695,67423.0,67422.0,0.153319]
[1729209914033,0.01190695,67423.0,67422.0,0.005]
[1729209914269,0.01190695,67423.0,67422.0,0.009]
[1729209914747,0.01190695,67423.0,67422.0,0.005]
[1729209914992,0.01190695,67423.0,67422.0,0.009]
[1729209915246,0.01190695,67423.0,67422.0,0.01]
[1729209916372,0.01190695,67423.0,67422.0,0.009]
[1729209916804,0.01190695,67423.0,67422.0,0.006]
[1729209917025,0.01190695,67423.0,67422.0,0.009]
[1729209917238,0.01190695,67423.0,67422.0,0.008]
[1729209917764,0.01109112,67423.0,67422.0,0.162319]
[1729209917978,0.00081583,67424.0,67423.0,0.153317]
[1729209918417,0.00081583,67426.0,67424.0,0.005]
[1729209918640,0.50081583,67427.0,67426.0,0.15331]
[1729209918858,0.51190764,67427.0,67426.0,0.15331]
[1729209919630,0.51190764,67427.0,67426.0,0.16120452]
[1729209919845,0.5,67427.0,67426.0,0.16620452]
[1729209920756,0.5,67427.0,67426.0,0.17020452]
[1729209920974,0.5,67427.0,67426.0,0.28410452]
[1729209921184,0.5,67427.0,67426.0,0.38010452]
[1729209921606,0.5,67427.0,67426.0,0.39210452]
[1729209921857,0.5,67427.0,67426.0,0.54106367]
[1729209922079,0.5,67427.0,67426.0,0.64166367]
[1729209922527,0.5,67427.0,67426.0,0.62766367]
[1729209922999,0.5,67427.0,67426.0,0.63884784]
[1729209923253,0.5,67427.0,67426.0,0.65284784]
[1729209923886,0.5,67427.0,67426.0,0.63884784]
[1729209924164,0.5,67427.0,67426.0,0.65284784]
[1729209924580,0.5,67427.0,67426.0,0.63884784]
[1729209924806,0.5,67427.0,67426.0,0.62966367]
[1729209925033,0.5,67427.0,67426.0,0.63866367]
[1729209925251,0.5,67427.0,67426.0,0.62966367]
[1729209925505,0.5,67427.0,67426.0,0.63884784]
[1729209925719,0.5,67427.0,67426.0,0.64366367]
[1729209926606,0.5,67427.0,67426.0,0.65284784]
[1729209927069,0.500827,67427.0,67426.0,0.65284784]
[1729209928633,0.500827,67427.0,67426.0,0.65484784]
[1729209928845,0.500827,67427.0,67426.0,0.65284784]
[1729209931685,0.500827,67427.0,67426.0,0.65053145]
[1729209932183,0.500827,67427.0,67426.0,0.62253145]
[1729209932408,0.500827,67427.0,67426.0,0.65053145]
[1729209938616,0.500827,67427.0,67426.0,0.56893145]
[1729209939262,0.500827,67427.0,67426.0,0.57058545]
[1729209950784,0.500827,67427.0,67426.0,0.61674385]
[1729209951067,0.500827,67427.0,67426.0,0.7858369]
[1729209951995,0.500827,67427.0,67426.0,0.72486898]
[1729209960361,0.500827,67427.0,67426.0,0.76911912]
[1729209960567,0.500827,67427.0,67426.0,0.72486898]
[1729209961474,0.500827,67427.0,67426.0,0.96596326]
[1729209961917,0.500827,67427.0,67426.0,0.98547994]
[1729209962148,0.500827,67427.0,67426.0,1.0962405]
[1729209962366,0.500827,67427.0,67426.0,0.98547994]
[1729209962667,0.500827,67427.0,67426.0,0.76922968]
[1729209962918,0.500827,67427.0,67426.0,0.98547994]
[1729209963380,0.500827,67427.0,67426.0,0.87735481]
[1729209963583,0.500827,67427.0,67426.0,0.76922968]
[1729209963800,0.500827,67427.0,67426.0,0.87735481]
[1729209964290,0.47879751,67427.0,67426.0,0.87935481]
[1729209964553,0.47879751,67427.0,67426.0,0.87735481]
[1729209964781,0.47879751,67427.0,67426.0,0.87729903]
[1729209965461,0.47879751,67427.0,67426.0,0.87929903]
[1729209965696,0.47879751,67427.0,67426.0,0.87729903]
[1729209968095,0.47879751,67427.0,67426.0,0.7691739]
[1729209968344,0.47879751,67427.0,67426.0,0.87729903]
[1729209969428,0.47879751,67427.0,67426.0,0.7691739]
[1729209969685,0.47879751,67427.0,67426.0,0.6552739]
[1729209970151,0.47879751,67427.0,67426.0,0.7440624]
[1729209970433,0.47879751,67427.0,67426.0,0.57591908]
[1729209970653,0.5672168,67427.0,67426.0,0.04523213]
[1729209970865,0.5672168,67427.0,67426.0,0.19354213]
[1729209971986,0.5672168,67427.0,67426.0,0.29354213]
[1729209974191,0.55609751,67427.0,67426.0,0.29354213]
[1729209975309,0.47879751,67427.0,67426.0,0.29354213]
[1729209976252,0.47879751,67427.0,67426.0,0.46550128]
[1729209985717,0.47879751,67427.0,67426.0,0.28854213]
[1729209986018,0.55439751,67427.0,67426.0,0.03523213]
[1729209986258,0.71462229,67427.0,67426.0,0.03523213]
[1729209986479,0.71462229,67427.0,67426.0,0.029654]
[1729209986700,0.80992229,67427.0,67426.0,0.015654]
[1729209986920,0.80992229,67427.0,67426.0,0.001654]
[1729209987142,0.80992229,67427.0,67426.0,0.028654]
[1729209987380,0.80992229,67427.0,67426.0,0.015654]
[1729209987593,0.80992229,67427.0,67426.0,0.001654]
[1729209987821,0.80992229,67427.0,67426.0,0.004654]
[1729209988036,0.80992229,67427.0,67426.0,0.008654]
[1729209995642,0.66161429,67427.0,67426.0,0.008654]
[1729209995849,0.76981064,67427.0,67426.0,0.008654]
[1729209996496,0.91811864,67427.0,67426.0,0.008654]
[1729209996934,0.76981064,67427.0,67426.0,0.008654]
[1729209999137,0.91811864,67427.0,67426.0,0.008654]
[1729210000425,0.93199002,67427.0,67426.0,0.008654]
[1729210000873,0.91811864,67427.0,67426.0,0.008654]
[1729210001101,0.90701769,67427.0,67426.0,0.008654]
[1729210001333,0.91811478,67427.0,67426.0,0.008654]
[1729210001620,0.91811401,67427.0,67426.0,0.008654]
[1729210005129,0.91811214,67427.0,67426.0,0.008654]
[1729210008768,0.90701769,67427.0,67426.0,0.008654]
[1729210008986,0.91811547,67427.0,67426.0,0.008654]
[1729210009669,0.66161112,67427.0,67426.0,0.008654]
[1729210009903,0.56631112,67427.0,67426.0,0.008654]
[1729210010351,0.56631112,67427.0,67426.0,0.01417004]
[1729210011701,0.56631112,67427.0,67426.0,0.00717004]
[1729210011953,0.56631112,67427.0,67426.0,0.01117004]
[1729210012176,0.56631112,67427.0,67426.0,0.01317004]
[1729210012628,0.49071112,67427.0,67426.0,0.00917004]
[1729210012848,0.49071112,67427.0,67426.0,0.01217004]
[1729210013940,0.49071112,67427.0,67426.0,0.00717004]
[1729210014165,0.63901912,67427.0,67426.0,0.00717004]
[1729210014850,0.63901912,67427.0,67426.0,0.001654]
[1729210015294,0.63901912,67427.0,67426.0,0.006654]
[1729210015519,0.63901912,67427.0,67426.0,0.004654]
[1729210015763,0.63901912,67427.0,67426.0,0.001654]
[1729210015986,0.74721547,67427.0,67426.0,0.001654]
[1729210016203,0.92141547,67427.0,67426.0,0.002654]
[1729210016656,0.92144336,67427.0,67426.0,0.002654]
[1729210017113,0.92144336,67427.0,67426.0,0.001654]
[1729210017325,0.92144336,67427.0,67426.0,0.00715933]
[1729210017532,0.92144336,67427.0,67426.0,0.001654]
[1729210017749,0.92144336,67427.0,67426.0,0.00715933]
[1729210017966,0.82914336,67427.0,67426.0,0.001654]
[1729210018174,0.82914336,67427.0,67426.0,0.00715933]
[1729210018385,0.82914336,67427.0,67426.0,0.001654]
[1729210018816,0.82914336,67427.0,67426.0,0.00715886]
[1729210019007,0.82914336,67427.0,67426.0,0.001654]
[1729210019232,0.82914336,67427.0,67426.0,0.00715783]
[1729210019445,0.82914336,67427.0,67426.0,0.001654]
[1729210019680,0.82914336,67427.0,67426.0,0.00715783]
[1729210019894,0.82914336,67427.0,67426.0,0.0071577]
[1729210022464,0.82914336,67427.0,67426.0,0.0088747]
[1729210023122,0.81801769,67427.0,67426.0,0.0088747]
[1729210023372,0.82914302,67427.0,67426.0,0.0088747]
[1729210023568,0.82914285,67427.0,67426.0,0.0088747]
[1729210023801,0.82914285,67427.0,67426.0,0.001654]
[1729210026270,0.7209465,67427.0,67426.0,0.001654]
[1729210029073,0.72094681,67427.0,67426.0,0.001654]
[1729210031201,0.72094769,67427.0,67426.0,0.001654]
[1729210032538,0.72094769,67427.0,67426.0,0.00887253]
[1729210033917,0.76536133,67427.0,67426.0,0.00887253]
[1729210034352,0.76536133,67427.0,67426.0,0.001654]
[1729210034575,0.61705333,67427.0,67426.0,0.001654]
[1729210034795,0.49073969,67427.0,67426.0,0.149964]
[1729210035042,0.49073969,67427.0,67426.0,0.15718346]
[1729210035289,0.49074224,67427.0,67426.0,0.15718346]
[1729210035974,0.49074224,67427.0,67426.0,0.15918346]
[1729210036211,0.49074224,67427.0,67426.0,0.16018346]
[1729210036444,0.49074224,67427.0,67426.0,0.15718346]
[1729210036660,0.49074224,67427.0,67426.0,0.15818346]
[1729210037852,0.48992641,67427.0,67426.0,0.16518346]
[1729210038307,0.48992641,67427.0,67426.0,0.17018346]
[1729210038533,0.48992641,67427.0,67426.0,0.16818346]
[1729210038983,0.48992641,67427.0,67426.0,0.17518346]
[1729210039207,0.48992641,67427.0,67426.0,0.18218346]
[1729210039429,0.48992641,67427.0,67426.0,0.17418346]
[1729210039676,0.48992641,67427.0,67426.0,0.17718346]
[1729210039912,0.48992641,67427.0,67426.0,0.18618346]
[1729210040195,0.48992641,67427.0,67426.0,0.47047981]
[1729210040442,0.47879751,67427.0,67426.0,0.47047981]
[1729210040906,0.47879751,67427.0,67426.0,0.46047981]
[1729210041134,0.47879751,67427.0,67426.0,0.47047981]
[1729210041609,0.47879751,67427.0,67426.0,0.46047981]
[1729210041817,0.47879751,67427.0,67426.0,0.46547981]
[1729210042240,0.47879751,67427.0,67426.0,0.47547981]
[1729210042460,0.47879751,67427.0,67426.0,0.45147981]
[1729210042721,0.47879751,67427.0,67426.0,0.47947981]
[1729210042905,0.47879751,67427.0,67426.0,0.35728346]
[1729210043411,0.47879751,67427.0,67426.0,0.37128346]
[1729210043631,0.47879751,67427.0,67426.0,0.35728346]
[1729210043860,0.47879751,67427.0,67426.0,0.34328346]
[1729210044316,0.47879751,67427.0,67426.0,0.35728346]
[1729210044786,0.47879751,67427.0,67426.0,0.34328346]
[1729210045033,0.47879751,67427.0,67426.0,0.35728346]
[1729210046131,0.47879751,67427.0,67426.0,0.37028346]
[1729210046882,0.47879751,67427.0,67426.0,0.35728346]
[1729210047351,0.47879751,67427.0,67426.0,0.36828346]
[1729210047583,0.47879751,67427.0,67426.0,0.35428346]
[1729210047829,0.47879751,67427.0,67426.0,0.36728346]
[1729210048274,0.47879751,67427.0,67426.0,0.35428346]
[1729210048715,0.47879751,67427.0,67426.0,0.36728346]
[1729210048935,0.47879751,67427.0,67426.0,0.35628346]
[1729210049185,0.47879751,67427.0,67426.0,0.34328346]
[1729210049408,0.47879751,67427.0,67426.0,0.36928346]
[1729210049626,0.47879751,67427.0,67426.0,0.52924261]
[1729210049844,0.47879751,67427.0,67426.0,0.54324261]
[1729210051150,0.47879751,67427.0,67426.0,0.52924261]
[1729210051375,0.47879751,67427.0,67426.0,0.54324261]
[1729210051598,0.47879751,67427.0,67426.0,0.52924261]
[1729210051811,0.47879751,67427.0,67426.0,0.54324261]
[1729210052022,0.47879751,67427.0,67426.0,0.52924261]
[1729210052456,0.47879751,67427.0,67426.0,0.54324261]
[1729210056576,0.47879751,67427.0,67426.0,0.37128346]
[1729210056839,0.47879751,67427.0,67426.0,0.29058346]
[1729210057276,0.84578267,67427.0,67426.0,0.03687346]
[1729210057511,0.82668508,67427.0,67426.0,0.03687346]
[1729210057727,0.14831,67426.0,67423.0,0.01]
[1729210057983,0.00081583,67424.0,67423.0,0.01]
[1729210058234,0.01191718,67424.0,67423.0,0.01]
[1729210058907,0.01191815,67424.0,67423.0,0.01]
[1729210059343,0.01191815,67424.0,67423.0,0.016]
[1729210059553,0.01191815,67424.0,67423.0,0.023]
[1729210062271,0.01191815,67424.0,67423.0,0.171317]
[1729210064117,0.01191815,67424.0,67423.0,0.018]
[1729210064364,0.01191815,67424.0,67423.0,0.023]
[1729210064583,0.01191815,67424.0,67423.0,0.013]
[1729210064799,0.16023315,67424.0,67423.0,0.013]
[1729210065246,0.16023315,67424.0,67423.0,0.014654]
[1729210065678,0.16023315,67424.0,67423.0,0.02123496]
[1729210065894,0.01191815,67424.0,67423.0,0.02123496]
[1729210066137,0.16023315,67424.0,67423.0,0.02123496]
[1729210066578,0.01191815,67424.0,67423.0,0.02123496]
[1729210074431,0.01191047,67424.0,67423.0,0.02123496]
[1729210075310,0.59458097,67424.0,67423.0,0.02123496]
[1729210075549,0.6637298,67424.0,67423.0,0.014654]
[1729210075756,0.87203402,67424.0,67423.0,0.014654]
[1729210076022,0.78324625,67424.0,67423.0,0.014654]
[1729210076485,0.78324625,67424.0,67422.0,0.001654]
[1729210076486,0.26932918,67423.0,67422.0,0.001654]
[1729210076721,1.04411784,67423.0,67422.0,0.001654]
[1729210077422,0.78414825,67423.0,67422.0,0.001654]
[1729210077892,0.78614825,67423.0,67422.0,0.002654]
[1729210078119,0.87488336,67423.0,67422.0,0.002654]
[1729210078341,0.6202189,67423.0,67422.0,0.001654]
[1729210078581,0.6252189,67423.0,67422.0,0.002654]
[1729210078810,0.6252189,67423.0,67422.0,0.003654]
[1729210078811,0.72320142,67423.0,67422.0,0.003654]
[1729210079269,0.69474174,67423.0,67422.0,0.003654]
[1729210080673,0.79192666,67423.0,67422.0,0.003654]
[1729210080901,0.79192666,67423.0,67405.0,0.22231279]
[1729210080902,0.44035118,67413.0,67405.0,0.22231279]
[1729210081146,0.59131033,67413.0,67405.0,0.22231279]
[1729210081391,0.61812952,67413.0,67405.0,0.22231279]
[1729210081621,0.61812952,67413.0,67402.0,0.001656]
[1729210082078,0.61812314,67413.0,67402.0,0.001656]
[1729210082300,0.62312314,67413.0,67412.0,0.001827]
[1729210083218,0.63012314,67413.0,67412.0,0.002827]
[1729210084596,0.50419583,67413.0,67412.0,0.002827]
[1729210084866,0.45211923,67413.0,67412.0,0.002827]
[1729210085091,0.30378023,67413.0,67412.0,0.002827]
[1729210085774,0.30378023,67413.0,67412.0,0.157878]
[1729210085989,0.30378023,67413.0,67412.0,0.009537]
[1729210086196,0.19558388,67413.0,67412.0,0.009537]
[1729210086399,0.17785683,67413.0,67412.0,0.157878]
[1729210086888,0.17785683,67413.0,67412.0,0.009537]
[1729210089070,0.17285683,67413.0,67412.0,0.009537]
[1729210089278,0.17786212,67413.0,67412.0,0.002827]
[1729210089573,0.17786212,67413.0,67412.0,0.00962927]
[1729210089805,0.17786212,67413.0,67412.0,0.002827]
[1729210090013,0.17786212,67413.0,67412.0,0.00962927]
[1729210090220,0.17786212,67413.0,67412.0,0.002827]
[1729210090429,0.17786212,67413.0,67412.0,0.00962927]
[1729210090636,0.17786212,67413.0,67412.0,0.002827]
[1729210090839,0.17786212,67413.0,67412.0,0.00962927]
[1729210091049,0.17786212,67413.0,67412.0,0.002827]
[1729210091263,0.17286212,67413.0,67412.0,0.00962927]
[1729210091475,0.17786212,67413.0,67412.0,0.002827]
[1729210091690,0.17786212,67413.0,67412.0,0.00962927]
[1729210091907,0.17786212,67413.0,67412.0,0.002827]
[1729210092323,0.17786337,67413.0,67412.0,0.00962918]
[1729210092540,0.17786337,67413.0,67412.0,0.002827]
[1729210092743,0.17786337,67413.0,67412.0,0.00962918]
[1729210092952,0.17286337,67413.0,67412.0,0.002827]
[1729210093167,0.17286337,67413.0,67412.0,0.00962874]
[1729210093437,0.17286337,67413.0,67412.0,0.002827]
[1729210093667,0.17286337,67413.0,67412.0,0.00962874]
[1729210093900,0.17286337,67413.0,67412.0,0.002827]
[1729210094326,0.17286337,67413.0,67412.0,0.00962819]
[1729210094541,0.17286337,67413.0,67412.0,0.002827]
[1729210094750,0.17286337,67413.0,67412.0,0.00962819]
[1729210094968,0.17286337,67413.0,67412.0,0.002827]
[1729210095219,0.17286337,67413.0,67412.0,0.00962817]
[1729210095458,0.17286337,67413.0,67412.0,0.002827]
[1729210095679,0.17286337,67413.0,67412.0,0.00962817]
[1729210095894,0.17286337,67413.0,67412.0,0.002827]
[1729210096113,0.17286337,67413.0,67412.0,0.00962817]
[1729210096976,0.17786337,67413.0,67412.0,0.00962817]
[1729210097416,0.17286337,67413.0,67412.0,0.00962817]
[1729210099394,0.02390422,67413.0,67412.0,0.15796917]
[1729210099844,0.01281583,67413.0,67412.0,0.25526917]
[1729210100084,0.02391357,67413.0,67412.0,0.33666917]
[1729210100728,0.01691357,67413.0,67412.0,0.33566917]
[1729210100940,0.01291357,67413.0,67412.0,0.34266917]
[1729210101366,0.01291357,67413.0,67412.0,0.34766917]
[1729210101590,0.01191357,67413.0,67412.0,0.33966917]
[1729210102673,0.01191357,67413.0,67412.0,0.34466917]
[1729210103156,0.01191357,67413.0,67412.0,0.34966917]
[1729210103361,0.01291357,67413.0,67412.0,0.35566917]
[1729210103810,0.01292102,67413.0,67412.0,0.35566917]
[1729210104097,0.01192102,67413.0,67412.0,0.34966917]
[1729210104309,0.01210519,67413.0,67412.0,0.35066917]
[1729210104510,0.01210519,67413.0,67412.0,0.35566917]
[1729210105389,0.01210519,67413.0,67412.0,0.35457705]
[1729210105600,0.01292102,67413.0,67412.0,0.35457705]
[1729210105820,0.01210519,67413.0,67412.0,0.35457705]
[1729210106032,0.00181583,67413.0,67412.0,0.35457705]
[1729210106457,0.001,67413.0,67412.0,0.35457705]
[1729210107130,0.00181583,67413.0,67412.0,0.35457705]
[1729210108204,0.001,67413.0,67412.0,0.35457705]
[1729210109200,0.00181583,67413.0,67412.0,0.35457705]
[1729210109996,0.00181583,67413.0,67412.0,0.01753605]
[1729210110208,0.35415312,67413.0,67412.0,0.01753605]
[1729210110439,0.52088057,67413.0,67412.0,0.01753605]
[1729210110672,0.52588057,67413.0,67412.0,0.011]
[1729210111307,0.5258835,67413.0,67412.0,0.011]
[1729210111770,0.41668715,67413.0,67412.0,0.005]
[1729210111962,0.18364815,67413.0,67412.0,0.005]
[1729210112182,0.33198715,67413.0,67412.0,0.001654]
[1729210112394,0.33198715,67413.0,67412.0,0.00817702]
[1729210112614,0.18864815,67413.0,67412.0,0.001654]
[1729210112854,0.18864815,67413.0,67412.0,0.0081854]
[1729210113106,0.33198715,67413.0,67412.0,0.0081854]
[1729210113323,0.33298715,67413.0,67412.0,0.0081854]
[1729210113559,0.33298715,67413.0,67412.0,0.001654]
[1729210113760,0.32798715,67413.0,67412.0,0.001654]
[1729210113965,0.33098715,67413.0,67412.0,0.001654]
[1729210114172,0.33098715,67413.0,67412.0,0.00818456]
[1729210114406,0.33098715,67413.0,67412.0,0.001654]
[1729210114619,0.33098715,67413.0,67412.0,0.00818456]
[1729210114844,0.33098715,67413.0,67412.0,0.149995]
[1729210114845,0.033689,67413.0,67412.0,0.149995]
[1729210115069,0.033689,67413.0,67412.0,0.00818456]
[1729210115507,0.00481583,67413.0,67412.0,0.00818456]
[1729210115719,0.029701,67413.0,67412.0,0.00818456]
[1729210116160,0.029701,67413.0,67412.0,0.01018456]
[1729210116583,0.029701,67413.0,67412.0,0.00818456]
[1729210116794,0.029701,67413.0,67412.0,0.00918456]
[1729210117027,0.03070257,67413.0,67412.0,0.00918456]
[1729210117229,0.03070257,67413.0,67412.0,0.00818456]
[1729210117457,0.02970257,67413.0,67412.0,0.00818456]
[1729210118570,0.02970257,67413.0,67412.0,0.00918456]
[1729210118993,0.02970384,67413.0,67412.0,0.00918456]
[1729210119219,0.03070384,67413.0,67412.0,0.00818456]
[1729210119447,0.02970384,67413.0,67412.0,0.00918456]
[1729210119672,0.03070384,67413.0,67412.0,0.00918456]
[1729210119882,0.03070384,67413.0,67412.0,0.00818456]
[1729210120105,0.03070384,67413.0,67412.0,0.00918456]
[1729210120106,0.02970384,67413.0,67412.0,0.00918456]
[1729210120310,0.03070384,67413.0,67412.0,0.00918456]
[1729210120537,0.02970384,67413.0,67412.0,0.00918456]
[1729210120985,0.03070384,67413.0,67412.0,0.00918456]
[1729210122045,0.02970384,67413.0,67412.0,0.00818456]
[1729210122487,0.03170384,67413.0,67412.0,0.00818456]
[1729210122695,0.02970384,67413.0,67412.0,0.00818456]
[1729210122920,0.03170685,67413.0,67412.0,0.00818456]
[1729210123342,0.02970685,67413.0,67412.0,0.00818456]
[1729210123597,0.03170685,67413.0,67412.0,0.00818456]
[1729210123812,0.02970685,67413.0,67412.0,0.00818456]
[1729210124251,0.03053385,67413.0,67412.0,0.00818456]
[1729210124478,0.17887285,67413.0,67412.0,0.00818456]
[1729210124718,0.17887285,67413.0,67412.0,0.001654]
[1729210124719,0.409132,67413.0,67412.0,0.001654]
[1729210125432,0.411132,67413.0,67412.0,0.001654]
[1729210125644,0.409132,67413.0,67412.0,0.001654]
[1729210125855,0.412132,67413.0,67412.0,0.001654]
[1729210126296,0.410132,67413.0,67412.0,0.001654]
[1729210126521,0.415132,67413.0,67412.0,0.001654]
[1729210126745,0.4141314,67413.0,67412.0,0.001654]
[1729210126958,0.4171314,67413.0,67412.0,0.001654]
[1729210128319,0.4091314,67413.0,67412.0,0.001654]
[1729210128766,0.4191314,67413.0,67412.0,0.001654]
[1729210128969,0.4131314,67413.0,67412.0,0.001654]
[1729210129199,0.4191314,67413.0,67412.0,0.001654]
[1729210129648,0.4151314,67413.0,67412.0,0.001654]
[1729210130101,0.4191314,67413.0,67412.0,0.001654]
[1729210134597,0.4191299,67413.0,67412.0,0.001654]
[1729210135095,0.4191299,67413.0,67412.0,0.00820266]
[1729210135316,0.4191299,67413.0,67412.0,0.001654]
[1729210135765,0.4191299,67413.0,67412.0,0.00820741]
[1729210139982,0.4191299,67413.0,67412.0,0.001654]
[1729210145068,0.41916901,67413.0,67412.0,0.001654]
[1729210148772,0.41917303,67413.0,67412.0,0.001654]
[1729210150310,0.39024098,67413.0,67412.0,0.001654]
[1729210153170,0.43468351,67413.0,67412.0,0.001654]
[1729210153824,0.30894098,67413.0,67412.0,0.001654]
[1729210154248,0.35338351,67413.0,67412.0,0.001654]
[1729210155330,0.30894098,67413.0,67412.0,0.001654]
[1729210156203,0.37560478,67413.0,67412.0,0.001654]
[1729210157284,0.35344692,67413.0,67412.0,0.001654]
[1729210157507,0.30894098,67413.0,67412.0,0.001654]
[1729210157791,0.32378419,67413.0,67412.0,0.001654]
[1729210158492,0.36828969,67413.0,67412.0,0.001654]
[1729210158710,0.35344648,67413.0,67412.0,0.001654]
[1729210161598,0.36344648,67413.0,67412.0,0.001654]
[1729210161810,0.7689411,67413.0,67412.0,0.001654]
[1729210162233,0.23797483,67404.0,67403.0,0.001656]
[1729210162452,0.6594341,67404.0,67403.0,0.001656]
[1729210163347,0.6614341,67404.0,67403.0,0.001656]
[1729210163564,0.6614341,67404.0,67403.0,0.002656]
[1729210164278,0.77261023,67404.0,67403.0,0.002656]
[1729210164482,0.77261023,67404.0,67403.0,0.005656]
[1729210164906,0.6614341,67404.0,67403.0,0.005656]
[1729210165129,0.77261058,67404.0,67403.0,0.005656]
[1729210165397,0.77061058,67404.0,67403.0,0.004656]
[1729210165622,0.91956973,67404.0,67403.0,0.002656]
[1729210165853,0.77061058,67404.0,67403.0,0.001656]
[1729210166074,0.66241423,67404.0,67403.0,0.003656]
[1729210166280,0.55623775,67404.0,67403.0,0.003656]
[1729210166486,0.55123775,67404.0,67403.0,0.001656]
[1729210166924,0.56223775,67404.0,67403.0,0.002656]
[1729210167138,0.55623775,67404.0,67403.0,0.001656]
[1729210167362,0.64012302,67404.0,67403.0,0.001656]
[1729210167577,0.55623775,67404.0,67403.0,0.001656]